fUSD/lending_fUSD_20250219
["ID","MTS","AMOUNT","RATE_DAILY","PERIOD"]
[353617158,1739958670620,-500.0,0.00014109,2]
[353617159,1739958670630,-500.0,0.00014109,2]
[353617160,1739958670641,-500.0,0.00014109,2]
[353617161,1739958670651,-500.0,0.00014109,2]
[353617162,1739958670661,-603.40144197,0.00014109,2]
[353617163,1739958670848,-67.90855803,0.00014109,2]
[353617164,1739958670858,-500.0,0.00014109,2]
[353617165,1739958670868,-500.0,0.00014109,2]
[353617166,1739958670877,-500.0,0.00014109,2]
[353617167,1739958670887,-500.0,0.00014109,2]
[353617168,1739958670897,-500.0,0.00014109,2]
[353617169,1739958670907,-500.0,0.00014109,2]
[353617170,1739958670917,-500.0,0.00014109,2]
[353617171,1739958670927,-500.0,0.00014109,2]
[353617172,1739958670937,-151.0,0.00014109,2]
[353617173,1739958670946,-500.0,0.00014109,2]
[353617174,1739958670956,-500.0,0.00014109,2]
[353617175,1739958670966,-399.22330558,0.00014109,2]
[353617176,1739958670975,-500.0,0.00014109,2]
[353617177,1739958670985,-837.24,0.00014109,2]
[353617178,1739958670995,-527.91,0.00014109,2]
[353617179,1739958671004,-623.3,0.00014109,2]
[353617180,1739958671014,-500.0,0.00014109,2]
[353617181,1739958671023,-500.0,0.00014109,2]
[353617182,1739958671033,-500.0,0.00014109,2]
[353617183,1739958671042,-500.0,0.00014109,2]
[353617184,1739958671051,-500.0,0.00014109,2]
[353617185,1739958671061,-151.0,0.00014109,2]
[353617186,1739958671071,-595.63,0.00014109,2]
[353617187,1739958671081,-500.0,0.00014109,2]
[353617188,1739958671090,-949.24,0.00014109,2]
[353617189,1739958671100,-500.0,0.00014109,2]
[353617190,1739958671110,-516.12821065,0.00014109,2]
[353617191,1739958671119,-500.0,0.00014109,2]
[353617192,1739958671129,-500.0,0.00014109,2]
[353617193,1739958671139,-500.0,0.00014109,2]
[353617194,1739958671149,-833.43,0.00014109,2]
[353617195,1739958671159,-846.54,0.00014109,2]
[353617196,1739958671168,-500.0,0.00014109,2]
[353617197,1739958671178,-886.83,0.00014109,2]
[353617198,1739958671187,-500.0,0.00014109,2]
[353617199,1739958671197,-500.0,0.00014109,2]
[353617200,1739958671207,-500.0,0.00014109,2]
[353617201,1739958671217,-500.0,0.00014109,2]
[353617202,1739958671227,-500.0,0.00014109,2]
[353617203,1739958671237,-1102.94,0.00014109,2]
[353617204,1739958671246,-151.0,0.00014109,2]
[353617205,1739958671256,-500.0,0.00014173,2]
[353617206,1739958671266,-165.13542821,0.00014173,2]
[353617207,1739958671276,-187.36523239,0.00014189,2]
[353617208,1739958671286,-500.0,0.00014189,2]
[353617209,1739958671296,-500.0,0.00014189,2]
[353617210,1739958671305,-500.0,0.00014189,2]
[353617211,1739958671315,-500.0,0.00014189,2]
[353617212,1739958671326,-500.0,0.00014189,2]
[353617213,1739958671335,-500.0,0.00014189,2]
[353617214,1739958671344,-500.0,0.00014189,2]
[353617215,1739958671354,-1149.71,0.00014189,2]
[353617216,1739958671364,-689.97,0.00014189,2]
[353617217,1739958671374,-500.0,0.00014189,2]
[353617218,1739958671387,-500.0,0.00014189,2]
[353617219,1739958671396,-500.0,0.00014189,2]
[353617220,1739958671405,-501.68,0.00014189,2]
[353617221,1739958671415,-500.0,0.00014189,2]
[353617222,1739958671425,-1638.75,0.00014189,2]
[353617223,1739958671435,-764.118626,0.00014189,2]
[353617224,1739958671445,-500.0,0.00014189,2]
[353617225,1739958671456,-663.71,0.00014189,2]
[353617226,1739958671467,-500.0,0.00014189,2]
[353617227,1739958671477,-1719.57,0.00014189,2]
[353617228,1739958671486,-500.0,0.00014189,2]
[353617229,1739958671496,-598.117079,0.00014189,2]
[353617230,1739958671505,-467.6978144,0.00014189,2]
[353617231,1739958671515,-500.0,0.00014189,2]
[353617232,1739958671525,-1122.32,0.00014189,2]
[353617233,1739958671535,-500.0,0.00014189,2]
[353617234,1739958671545,-1319.32,0.00014189,2]
[353617235,1739958671554,-500.0,0.00014189,2]
[353617236,1739958671564,-500.0,0.00014189,2]
[353617237,1739958671575,-1631.12,0.00014189,2]
[353617238,1739958671585,-3224.55,0.00014189,2]
[353617239,1739958671595,-500.0,0.00014189,2]
[353617240,1739958671605,-1046.1,0.00014189,2]
[353617241,1739958671615,-822.22,0.00014189,2]
[353617242,1739958671624,-517.86,0.00014189,2]
[353617243,1739958671634,-1897.39,0.00014189,2]
[353617244,1739958671645,-1595.95,0.00014189,2]
[353617245,1739958671655,-2360.69,0.00014189,2]
[353617246,1739958671664,-500.0,0.00014189,2]
[353617247,1739958671674,-500.0,0.00014189,2]
[353617248,1739958671683,-500.0,0.00014189,2]
[353617249,1739958671692,-500.0,0.00014189,2]
[353617250,1739958671702,-930.8,0.00014189,2]
[353617251,1739958671711,-4058.1,0.00014189,2]
[353617252,1739958671720,-500.0,0.00014189,2]
[353617253,1739958671731,-661.97,0.00014189,2]
[353617254,1739958671741,-2252.01,0.00014189,2]
[353617255,1739958671750,-500.0,0.00014189,2]
[353617256,1739958671760,-500.0,0.00014189,2]
[353617257,1739958671769,-500.0,0.00014189,2]
[353617258,1739958671778,-500.0,0.00014189,2]
[353617259,1739958671787,-1230.73,0.00014189,2]
[353617260,1739958671796,-591.75,0.00014189,2]
[353617261,1739958671805,-500.0,0.00014189,2]
[353617262,1739958671815,-318.83391881,0.00014189,2]
[353617263,1739958671824,-500.0,0.00014189,2]
[353617264,1739958671834,-1971.74,0.00014189,2]
[353617265,1739958671844,-500.0,0.00014189,2]
[353617266,1739958671855,-1580.38,0.00014189,2]
[353617267,1739958671864,-777.0,0.00014189,2]
[353617268,1739958671874,-500.0,0.00014189,2]
[353617269,1739958671883,-500.0,0.00014189,2]
[353617270,1739958671893,-500.0,0.00014189,2]
[353617271,1739958671903,-2647.7,0.00014189,2]
[353617272,1739958671912,-500.0,0.00014189,2]
[353617273,1739958671923,-1017.49,0.00014189,2]
[353617274,1739958671933,-1298.81,0.00014189,2]
[353617275,1739958671944,-500.0,0.00014189,2]
[353617276,1739958671953,-1429.82,0.00014189,2]
[353617277,1739958671963,-500.0,0.00014189,2]
[353617278,1739958671972,-520.03838716,0.00014189,2]
[353617279,1739958671982,-500.0,0.00014189,2]
[353617280,1739958671992,-1350.11,0.00014189,2]
[353617281,1739958672002,-500.0,0.00014189,2]
[353617282,1739958672012,-1657.98,0.00014189,2]
[353617283,1739958672021,-500.0,0.00014189,2]
[353617284,1739958672031,-500.0,0.00014189,2]
[353617285,1739958672040,-500.0,0.00014189,2]
[353617286,1739958672050,-2268.32,0.00014189,2]
[353617287,1739958672059,-500.0,0.00014189,2]
[353617288,1739958672068,-500.0,0.00014189,2]
[353617289,1739958672079,-500.0,0.00014189,2]
[353617290,1739958672088,-500.0,0.00014189,2]
[353617291,1739958672097,-500.0,0.00014189,2]
[353617292,1739958672106,-500.0,0.00014189,2]
[353617293,1739958672116,-500.0,0.00014189,2]
[353617294,1739958672125,-2631.41,0.00014189,2]
[353617295,1739958672135,-1668.81,0.00014189,2]
[353617296,1739958672144,-519.61421164,0.00014189,2]
[353617297,1739958672154,-1315.26,0.00014189,2]
[353617298,1739958672164,-1731.57,0.00014189,2]
[353617299,1739958672174,-500.0,0.00014189,2]
[353617300,1739958672183,-714.44,0.00014189,2]
[353617301,1739958672193,-1643.03,0.00014189,2]
[353617302,1739958672203,-1725.14,0.00014189,2]
[353617303,1739958672214,-764.1,0.00014189,2]
[353617304,1739958672223,-500.0,0.00014189,2]
[353617305,1739958672233,-627.8,0.00014189,2]
[353617306,1739958672243,-1254.03,0.00014189,2]
[353617307,1739958672252,-1433.78,0.00014189,2]
[353617308,1739958672262,-500.0,0.00014189,2]
[353617309,1739958672271,-654.61,0.00014189,2]
[353617310,1739958672280,-500.0,0.00014189,2]
[353617311,1739958672290,-741.88,0.00014189,2]
[353617312,1739958672300,-1167.89,0.00014189,2]
[353617313,1739958672310,-810.7,0.00014189,2]
[353617314,1739958672319,-2263.14,0.00014189,2]
[353617315,1739958672329,-500.0,0.00014189,2]
[353617316,1739958672339,-1747.62,0.00014189,2]
[353617317,1739958672349,-500.0,0.00014189,2]
[353617318,1739958672358,-500.0,0.00014189,2]
[353617319,1739958672367,-500.0,0.00014189,2]
[353617320,1739958672377,-500.0,0.00014189,2]
[353617321,1739958672389,-562.97,0.00014189,2]
[353617322,1739958672399,-599.82,0.00014189,2]
[353617323,1739958672408,-1126.39,0.00014189,2]
[353617324,1739958672418,-1051.71,0.00014189,2]
[353617325,1739958672429,-507.56,0.00014189,2]
[353617326,1739958672439,-1415.79,0.00014189,2]
[353617327,1739958672448,-1904.34,0.00014189,2]
[353617328,1739958672459,-2445.12,0.00014189,2]
[353617329,1739958672468,-520.58,0.00014189,2]
[353617330,1739958672478,-500.0,0.00014189,2]
[353617331,1739958672488,-560.00433173,0.00014189,2]
[353617332,1739958672498,-2013.34,0.00014189,2]
[353617333,1739958672508,-500.0,0.00014189,2]
[353617334,1739958672518,-500.0,0.00014189,2]
[353617335,1739958672527,-500.0,0.00014189,2]
[353617336,1739958672537,-500.0,0.00014189,2]
[353617337,1739958672547,-161.84979608,0.00014189,2]
[353617338,1739958672556,-1155.82,0.00014189,2]
[353617339,1739958672566,-556.48,0.00014189,2]
[353617340,1739958672576,-500.0,0.0001419,2]
[353617341,1739958672586,-500.0,0.0001419,2]
[353617342,1739958672595,-500.0,0.0001419,2]
[353617343,1739958672605,-500.0,0.0001419,2]
[353617344,1739958672615,-500.0,0.0001419,2]
[353617345,1739958672624,-500.0,0.0001419,2]
[353617346,1739958672634,-500.0,0.0001419,2]
[353617347,1739958672643,-500.0,0.0001419,2]
[353617348,1739958672652,-500.0,0.0001419,2]
[353617349,1739958672662,-500.0,0.0001419,2]
[353617350,1739958672671,-500.0,0.0001419,2]
[353617351,1739958672681,-555.74,0.0001419,2]
[353617352,1739958672690,-572.35,0.0001419,2]
[353617353,1739958672763,-500.0,0.0001419,2]
[353617354,1739958672774,-500.0,0.0001419,2]
[353617355,1739958672783,-500.0,0.0001419,2]
[353617356,1739958672792,-500.0,0.0001419,2]
[353617357,1739958672802,-500.0,0.0001419,2]
[353617358,1739958672811,-500.0,0.0001419,2]
[353617359,1739958672822,-500.0,0.0001419,2]
[353617360,1739958672832,-500.0,0.0001419,2]
[353617361,1739958672841,-500.0,0.0001419,2]
[353617362,1739958672850,-500.0,0.0001419,2]
[353617363,1739958672860,-512.88,0.0001419,2]
[353617364,1739958672870,-500.0,0.0001419,2]
[353617365,1739958672879,-500.0,0.0001419,2]
[353617366,1739958672889,-500.0,0.0001419,2]
[353617367,1739958672899,-500.0,0.0001419,2]
[353617368,1739958672909,-501.74,0.0001419,2]
[353617369,1739958672919,-500.0,0.0001419,2]
[353617370,1739958672928,-500.0,0.0001419,2]
[353617371,1739958672938,-153.926426,0.0001419,2]
[353617372,1739958672947,-153.926426,0.0001419,2]
[353617373,1739958672956,-500.0,0.0001419,2]
[353617374,1739958672966,-500.0,0.0001419,2]
[353617375,1739958672975,-306.02669583,0.0001419,2]
[353617376,1739958672984,-500.0,0.0001419,2]
[353617377,1739958672994,-500.0,0.0001419,2]
[353617378,1739958673003,-500.0,0.0001419,2]
[353617379,1739958673013,-500.0,0.0001419,2]
[353617380,1739958673022,-777.52,0.0001419,2]
[353617381,1739958673031,-500.0,0.0001419,2]
[353617382,1739958673041,-556.813474,0.0001419,2]
[353617383,1739958673050,-556.813474,0.0001419,2]
[353617384,1739958673059,-500.0,0.0001419,2]
[353617385,1739958673069,-500.0,0.0001419,2]
[353617386,1739958673079,-584.72,0.0001419,2]
[353617387,1739958673089,-500.0,0.0001419,2]
[353617388,1739958673099,-500.0,0.0001419,2]
[353617389,1739958673108,-598.61,0.0001419,2]
[353617390,1739958673118,-545.06863525,0.0001419,2]
[353617391,1739958673127,-500.0,0.0001419,2]
[353617392,1739958673136,-819.81,0.0001419,2]
[353617393,1739958673146,-579.43,0.0001419,2]
[353617394,1739958673156,-662.41,0.0001419,2]
[353617395,1739958673165,-500.0,0.0001419,2]
[353617396,1739958673175,-545.98,0.0001419,2]
[353617397,1739958673184,-500.0,0.0001419,2]
[353617398,1739958673193,-500.0,0.0001419,2]
[353617399,1739958673203,-500.0,0.0001419,2]
[353617400,1739958673212,-175.6883106,0.0001419,2]
[353617401,1739958673221,-650.6,0.0001419,2]
[353617402,1739958673230,-500.0,0.0001419,2]
[353617403,1739958673239,-151.0,0.0001419,2]
[353617404,1739958673248,-500.0,0.0001419,2]
[353617405,1739958673258,-500.0,0.0001419,2]
[353617406,1739958673268,-500.0,0.0001419,2]
[353617407,1739958673278,-151.0,0.0001419,2]
[353617408,1739958673287,-500.0,0.0001419,2]
[353617409,1739958673296,-500.0,0.0001419,2]
[353617410,1739958673306,-3780.16,0.0001419,2]
[353617411,1739958673316,-500.0,0.0001419,2]
[353617412,1739958673326,-2689.59,0.0001419,2]
[353617413,1739958673335,-500.0,0.0001419,2]
[353617414,1739958673344,-675.26,0.0001419,2]
[353617415,1739958673353,-1054.3,0.0001419,2]
[353617416,1739958673363,-525.73,0.0001419,2]
[353617417,1739958673373,-1002.09,0.0001419,2]
[353617418,1739958673387,-1768.75,0.0001419,2]
[353617419,1739958673397,-500.0,0.0001419,2]
[353617420,1739958673407,-566.11,0.0001419,2]
[353617421,1739958673417,-500.0,0.0001419,2]
[353617422,1739958673426,-504.62571894,0.0001419,2]
[353617423,1739958673436,-1310.35,0.0001419,2]
[353617424,1739958673445,-500.0,0.0001419,2]
[353617425,1739958673458,-500.0,0.0001419,2]
[353617426,1739958673468,-500.0,0.0001419,2]
[353617427,1739958673477,-802.0,0.0001419,2]
[353617428,1739958673486,-500.0,0.0001419,2]
[353617429,1739958673497,-500.0,0.0001419,2]
[353617430,1739958673506,-630.16,0.0001419,2]
[353617431,1739958673516,-1193.41,0.0001419,2]
[353617432,1739958673527,-212.48701223,0.0001419,2]
[353617433,1739958673537,-1595.03,0.0001419,2]
[353617434,1739958673546,-263.0353488,0.0001419,2]
[353617435,1739958673587,-292.560002,0.0001419,2]
[353617436,1739958674183,-500.0,0.00013779,2]
[353617437,1739958674192,-500.0,0.00013861,2]
[353617438,1739958674201,-500.0,0.00013944,2]
[353617439,1739958674211,-500.0,0.00014026,2]
[353617440,1739958674220,-500.0,0.00014108,2]
[353617441,1739958674230,-408.63864675,0.0001419,2]
[353617442,1739958674241,-91.36135325,0.0001419,2]
[353617443,1739958674251,-500.0,0.0001419,2]
[353617444,1739958674261,-1140.33,0.0001419,2]
[353617445,1739958674271,-1145.3,0.0001419,2]
[353617446,1739958674281,-533.66,0.0001419,2]
[353617447,1739958674291,-1298.9,0.0001419,2]
[353617448,1739958674300,-1690.53,0.0001419,2]
[353617449,1739958674310,-500.0,0.0001419,2]
[353617450,1739958674320,-500.0,0.0001419,2]
[353617451,1739958674330,-500.0,0.0001419,2]
[353617452,1739958674340,-500.0,0.0001419,2]
[353617453,1739958674349,-500.0,0.0001419,2]
[353617454,1739958674359,-692.97,0.0001419,2]
[353617455,1739958674368,-1648.75,0.0001419,2]
[353617456,1739958674380,-362.33953075,0.0001419,2]
[353617457,1739958674391,-1022.01046925,0.0001419,2]
[353617458,1739958674401,-500.0,0.0001419,2]
[353617459,1739958674410,-500.0,0.0001419,2]
[353617460,1739958674421,-500.0,0.0001419,2]
[353617461,1739958674431,-500.0,0.0001419,2]
[353617462,1739958674440,-500.0,0.0001419,2]
[353617463,1739958674450,-1155.94,0.0001419,2]
[353617464,1739958674461,-1515.36,0.0001419,2]
[353617465,1739958674471,-667.96,0.0001419,2]
[353617466,1739958674481,-500.0,0.0001419,2]
[353617467,1739958674490,-500.0,0.0001419,2]
[353617468,1739958674500,-500.0,0.0001419,2]
[353617469,1739958674512,-500.0,0.0001419,2]
[353617470,1739958674522,-1520.24,0.0001419,2]
[353617471,1739958674533,-500.0,0.0001419,2]
[353617472,1739958674543,-1919.55,0.0001419,2]
[353617473,1739958674552,-806.85,0.0001419,2]
[353617474,1739958674561,-500.0,0.0001419,2]
[353617475,1739958674572,-1543.83,0.0001419,2]
[353617476,1739958674581,-163.81095344,0.0001419,2]
[353617477,1739958674599,-336.18904656,0.0001419,2]
[353617478,1739958674609,-1384.11,0.0001419,2]
[353617479,1739958674619,-267.87770404,0.0001419,2]
[353617480,1739958674631,-232.12229596,0.0001419,2]
[353617481,1739958674640,-786.83,0.0001419,2]
[353617482,1739958674650,-500.0,0.0001419,2]
[353617483,1739958674659,-1949.93,0.0001419,2]
[353617484,1739958674669,-997.23,0.0001419,2]
[353617485,1739958674678,-500.0,0.0001419,2]
[353617486,1739958674688,-500.0,0.0001419,2]
[353617487,1739958674699,-1755.95,0.0001419,2]
[353617488,1739958674708,-500.0,0.0001419,2]
[353617489,1739958674718,-500.0,0.0001419,2]
[353617490,1739958674728,-500.0,0.00014191,2]
[353617491,1739958674738,-500.0,0.00014191,2]
[353617492,1739958674748,-500.0,0.00014191,2]
[353617493,1739958674757,-500.0,0.00014191,2]
[353617494,1739958674766,-500.0,0.00014191,2]
[353617495,1739958674775,-500.0,0.00014191,2]
[353617496,1739958674784,-500.0,0.00014191,2]
[353617497,1739958674793,-500.0,0.00014191,2]
[353617498,1739958674803,-654.29,0.00014191,2]
[353617499,1739958674813,-500.0,0.00014191,2]
[353617500,1739958674823,-500.0,0.00014191,2]
[353617501,1739958674832,-500.0,0.00014191,2]
[353617502,1739958674842,-500.0,0.00014191,2]
[353617503,1739958674851,-1204.96,0.00014191,2]
[353617504,1739958674860,-709.03,0.00014191,2]
[353617505,1739958674870,-500.0,0.00014191,2]
[353617506,1739958674879,-500.0,0.00014191,2]
[353617507,1739958674889,-531.9,0.00014191,2]
[353617508,1739958674899,-500.0,0.00014191,2]
[353617509,1739958674909,-259.2188855,0.00014191,2]
[353617510,1739958674920,-500.0,0.00014191,2]
[353617511,1739958674929,-500.0,0.00014191,2]
[353617512,1739958674938,-500.0,0.00014191,2]
[353617513,1739958674947,-508.01,0.00014191,2]
[353617514,1739958674956,-500.0,0.00014191,2]
[353617515,1739958674967,-500.0,0.00014191,2]
[353617516,1739958674977,-1121.0,0.00014191,2]
[353617517,1739958674988,-500.0,0.00014191,2]
[353617518,1739958674998,-500.0,0.00014191,2]
[353617519,1739958675007,-531.6585798,0.00014191,2]
[353617520,1739958675016,-500.0,0.00014191,2]
[353617521,1739958675026,-544.84,0.00014191,2]
[353617522,1739958675034,-500.0,0.00014191,2]
[353617523,1739958675045,-500.0,0.00014191,2]
[353617524,1739958675055,-500.0,0.00014191,2]
[353617525,1739958675064,-500.0,0.00014191,2]
[353617526,1739958675073,-543.84920761,0.00014191,2]
[353617527,1739958675083,-500.0,0.00014191,2]
[353617528,1739958675092,-500.0,0.00014191,2]
[353617529,1739958675100,-500.0,0.00014191,2]
[353617530,1739958675109,-541.25,0.00014191,2]
[353617531,1739958675118,-500.0,0.00014191,2]
[353617532,1739958675129,-500.0,0.00014191,2]
[353617533,1739958675138,-500.0,0.00014191,2]
[353617534,1739958675148,-500.0,0.00014191,2]
[353617535,1739958675157,-500.0,0.00014191,2]
[353617536,1739958675167,-500.0,0.00014191,2]
[353617537,1739958675175,-500.0,0.00014191,2]
[353617538,1739958675185,-500.0,0.00014191,2]
[353617539,1739958675194,-500.0,0.00014191,2]
[353617540,1739958675203,-500.0,0.00014191,2]
[353617541,1739958675212,-500.0,0.00014191,2]
[353617542,1739958675221,-604.95,0.00014191,2]
[353617543,1739958675230,-500.0,0.00014191,2]
[353617544,1739958675240,-500.0,0.00014191,2]
[353617545,1739958675250,-500.0,0.00014191,2]
[353617546,1739958675259,-620.86,0.00014191,2]
[353617547,1739958675267,-500.0,0.00014191,2]
[353617548,1739958675277,-521.33,0.00014191,2]
[353617549,1739958675286,-500.0,0.00014191,2]
[353617550,1739958675295,-500.0,0.00014191,2]
[353617551,1739958675304,-542.44,0.00014191,2]
[353617552,1739958675313,-500.0,0.00014191,2]
[353617553,1739958675322,-500.0,0.00014191,2]
[353617554,1739958675331,-500.0,0.00014191,2]
[353617555,1739958675340,-500.0,0.00014191,2]
[353617556,1739958675350,-500.0,0.00014191,2]
[353617557,1739958675359,-566.47,0.00014191,2]
[353617558,1739958675368,-500.0,0.00014191,2]
[353617559,1739958675379,-500.0,0.00014191,2]
[353617560,1739958675390,-151.0,0.00014191,2]
[353617561,1739958675399,-500.0,0.00014191,2]
[353617562,1739958675408,-500.0,0.00014191,2]
[353617563,1739958675416,-500.0,0.00014191,2]
[353617564,1739958675426,-500.0,0.00014191,2]
[353617565,1739958675435,-500.0,0.00014191,2]
[353617566,1739958675443,-500.0,0.00014191,2]
[353617567,1739958675453,-500.0,0.00014191,2]
[353617568,1739958675462,-563.67,0.00014191,2]
[353617569,1739958675471,-500.0,0.00014191,2]
[353617570,1739958675480,-500.0,0.00014191,2]
[353617571,1739958675490,-500.0,0.00014191,2]
[353617572,1739958675499,-500.0,0.00014191,2]
[353617573,1739958675508,-587.72,0.00014191,2]
[353617574,1739958675517,-653.58,0.00014191,2]
[353617575,1739958675527,-506.98133836,0.00014191,2]
[353617576,1739958675535,-500.0,0.00014191,2]
[353617577,1739958675545,-500.0,0.00014191,2]
[353617578,1739958675553,-500.0,0.00014191,2]
[353617579,1739958675563,-500.0,0.00014191,2]
[353617580,1739958675572,-500.0,0.00014191,2]
[353617581,1739958675581,-500.0,0.00014191,2]
[353617582,1739958675590,-500.0,0.00014191,2]
[353617583,1739958675599,-500.0,0.00014191,2]
[353617584,1739958675608,-500.0,0.00014191,2]
[353617585,1739958675617,-500.0,0.00014191,2]
[353617586,1739958675626,-500.0,0.00014191,2]
[353617587,1739958675635,-500.0,0.00014191,2]
[353617588,1739958675644,-500.0,0.00014191,2]
[353617589,1739958675653,-657.98,0.00014191,2]
[353617590,1739958675662,-933.0,0.00014191,2]
[353617591,1739958675671,-500.0,0.00014191,2]
[353617592,1739958675680,-500.0,0.00014191,2]
[353617593,1739958675689,-412.03216349,0.00014191,2]
[353617594,1739958675698,-844.31,0.00014191,2]
[353617595,1739958675707,-1320.47,0.00014191,2]
[353617596,1739958675716,-860.08,0.00014191,2]
[353617597,1739958675725,-500.0,0.00014191,2]
[353617598,1739958675734,-1183.05,0.00014191,2]
[353617599,1739958675743,-500.0,0.00014191,2]
[353617600,1739958675752,-919.71,0.00014191,2]
[353617601,1739958675761,-469.41736089,0.00014191,2]
[353617602,1739958675771,-500.0,0.00014191,2]
[353617603,1739958675782,-500.0,0.00014191,2]
[353617604,1739958675791,-1181.72,0.00014191,2]
[353617605,1739958675800,-530.5,0.00014191,2]
[353617606,1739958675809,-500.0,0.00014191,2]
[353617607,1739958675818,-500.0,0.00014191,2]
[353617608,1739958675828,-500.0,0.00014191,2]
[353617609,1739958675837,-978.42,0.00014191,2]
[353617610,1739958675847,-500.0,0.00014191,2]
[353617611,1739958675856,-501.47,0.00014191,2]
[353617612,1739958675866,-500.0,0.00014191,2]
[353617613,1739958675875,-500.0,0.00014191,2]
[353617614,1739958675885,-803.3,0.00014191,2]
[353617615,1739958675894,-500.0,0.00014191,2]
[353617616,1739958675903,-500.0,0.00014191,2]
[353617617,1739958675911,-758.53,0.00014191,2]
[353617618,1739958675920,-500.0,0.00014191,2]
[353617619,1739958675929,-571.54,0.00014191,2]
[353617620,1739958675938,-1007.34,0.00014191,2]
[353617621,1739958675947,-500.0,0.00014191,7]
[353617622,1739958675957,-500.0,0.00014191,2]
[353617623,1739958675966,-500.0,0.00014191,2]
[353617624,1739958675975,-1035.75,0.00014191,2]
[353617625,1739958675984,-781.46,0.00014191,2]
[353617626,1739958675993,-500.0,0.00014191,2]
[353617627,1739958676002,-765.33,0.00014191,2]
[353617628,1739958676012,-500.0,0.00014191,2]
[353617629,1739958676021,-500.0,0.00014191,2]
[353617630,1739958676030,-504.77496794,0.00014191,2]
[353617631,1739958676039,-500.0,0.00014191,2]
[353617632,1739958676048,-151.0,0.00014191,2]
[353617633,1739958676058,-500.0,0.00014191,2]
[353617634,1739958676067,-500.0,0.00014191,2]
[353617635,1739958676076,-500.0,0.00014191,2]
[353617636,1739958676085,-500.0,0.00014191,2]
[353617637,1739958676095,-500.0,0.00014191,2]
[353617638,1739958676103,-604.93,0.00014191,2]
[353617639,1739958676112,-151.0,0.00014191,2]
[353617640,1739958676121,-500.0,0.00014191,2]
[353617641,1739958676130,-1371.65,0.00014191,2]
[353617642,1739958676139,-500.0,0.00014191,2]
[353617643,1739958676148,-500.0,0.00014191,2]
[353617644,1739958676157,-500.0,0.00014191,2]
[353617645,1739958676166,-689.74,0.00014191,2]
[353617646,1739958676175,-500.0,0.00014191,2]
[353617647,1739958676184,-550.26,0.00014191,2]
[353617648,1739958676194,-500.0,0.00014191,2]
[353617649,1739958676204,-819.11,0.00014191,2]
[353617650,1739958676213,-500.0,0.00014191,2]
[353617651,1739958676223,-401.47476521,0.00014191,2]
[353617652,1739958676232,-532.28398155,0.00014191,2]
[353617653,1739958676241,-706.48,0.00014191,2]
[353617654,1739958676250,-500.0,0.00014191,2]
[353617655,1739958676260,-500.0,0.00014191,2]
[353617656,1739958676269,-500.0,0.00014191,2]
[353617657,1739958676278,-500.0,0.00014191,2]